[Event "Titled Tuesday Blitz September 13 Late 2022"]
[White "Hansen, Eric"]
[Black "Papasimakopoulos, Alexandros"]
[WhiteFideId "2606771"]
[BlackFideId "4244125"]
[WhiteElo "2568"]
[BlackElo "2357"]
[Result "0-1"]
[Round "08"]
[TimeControl "180+1"]
[Date "2022.09.13"]
[WhiteClock "0:00:02"]
[BlackClock "0:00:33"]

1. Nf3 {[%clk 0:03:00]}  d5 {[%clk 0:02:49]} 2. g3 {[%clk 0:02:58]}  Nf6 {[%clk 0:02:42]} 3. Bg2 {[%clk 0:02:59]}  c6 {[%clk 0:02:41]} 4. O-O {[%clk 0:02:59]}  Bf5 {[%clk 0:02:38]} 5. d3 {[%clk 0:02:58]}  e6 {[%clk 0:02:36]} 6. c4 {[%clk 0:02:58]}  h6 {[%clk 0:02:35]} 7. Qb3 {[%clk 0:02:58]}  Qb6 {[%clk 0:02:31]} 8. Be3 {[%clk 0:02:59]}  Qxb3 {[%clk 0:02:30]} 9. axb3 {[%clk 0:03:00]}  a6 {[%clk 0:02:27]} 10. Nc3 {[%clk 0:03:00]}  Nbd7 {[%clk 0:02:27]} 11. h3 {[%clk 0:02:59]}  Be7 {[%clk 0:02:25]} 12. Nd4 {[%clk 0:02:53]}  Bg6 {[%clk 0:02:24]} 13. cxd5 {[%clk 0:02:51]}  exd5 {[%clk 0:02:23]} 14. Nc2 {[%clk 0:02:50]}  O-O {[%clk 0:02:21]} 15. b4 {[%clk 0:02:50]}  Rfe8 {[%clk 0:02:19]} 16. Bd4 {[%clk 0:02:50]}  Bd6 {[%clk 0:02:13]} 17. f4 {[%clk 0:02:47]}  h5 {[%clk 0:01:57]} 18. Rf2 {[%clk 0:02:28]}  Rad8 {[%clk 0:01:56]} 19. Na4 {[%clk 0:02:26]}  Bf5 {[%clk 0:01:54]} 20. Nc5 {[%clk 0:02:26]}  Nxc5 {[%clk 0:01:47]} 21. bxc5 {[%clk 0:02:18]}  Bc7 {[%clk 0:01:47]} 22. Bxf6 {[%clk 0:02:12]}  gxf6 {[%clk 0:01:48]} 23. Nd4 {[%clk 0:02:12]}  Bh7 {[%clk 0:01:45]} 24. h4 {[%clk 0:02:11]}  f5 {[%clk 0:01:38]} 25. Bh3 {[%clk 0:02:07]}  Re3 {[%clk 0:01:37]} 26. Rg2 {[%clk 0:02:02]}  Rde8 {[%clk 0:01:37]} 27. Kf1 {[%clk 0:02:01]}  Bd8 {[%clk 0:01:32]} 28. Bxf5 {[%clk 0:02:00]}  Bf6 {[%clk 0:01:32]} 29. Bxh7+ {[%clk 0:01:57]}  Kxh7 {[%clk 0:01:33]} 30. Nf5 {[%clk 0:01:57]}  R3e6 {[%clk 0:01:30]} 31. Ra4 {[%clk 0:01:45]}  Be7 {[%clk 0:01:14]} 32. Rb4 {[%clk 0:01:28]}  b5 {[%clk 0:01:12]} 33. Nxe7 {[%clk 0:01:11]}  R6xe7 {[%clk 0:01:11]} 34. Rb3 {[%clk 0:00:59]}  a5 {[%clk 0:01:11]} 35. Ra3 {[%clk 0:00:56]}  a4 {[%clk 0:01:10]} 36. b3 {[%clk 0:00:41]}  axb3 {[%clk 0:00:56]} 37. Rxb3 {[%clk 0:00:40]}  Kg6 {[%clk 0:00:56]} 38. Ra3 {[%clk 0:00:39]}  Kf5 {[%clk 0:00:56]} 39. Ra6 {[%clk 0:00:37]}  Re6 {[%clk 0:00:56]} 40. Ke1 {[%clk 0:00:27]}  Rb8 {[%clk 0:00:52]} 41. Kd2 {[%clk 0:00:25]}  d4 {[%clk 0:00:51]} 42. Ra7 {[%clk 0:00:19]}  f6 {[%clk 0:00:47]} 43. Rd7 {[%clk 0:00:18]}  b4 {[%clk 0:00:43]} 44. Rxd4 {[%clk 0:00:18]}  b3 {[%clk 0:00:44]} 45. e4+ {[%clk 0:00:15]}  Kg4 {[%clk 0:00:43]} 46. Kc3 {[%clk 0:00:16]}  Rb5 {[%clk 0:00:38]} 47. Rc4 {[%clk 0:00:16]}  Re8 {[%clk 0:00:35]} 48. f5 {[%clk 0:00:11]}  Reb8 {[%clk 0:00:33]} 49. Rb2 {[%clk 0:00:05]}  Kxg3 {[%clk 0:00:33]} 50. Kd2 {[%clk 0:00:02]}  Kf3 {[%clk 0:00:33]} 51. Kc3 {[%clk 0:00:02]}  Ke3 {[%clk 0:00:33]} 0-1


[Site "https://www.chess.com"]

[Event "Titled Tuesday Blitz September 13 Late 2022"]
[White "Keymer, Vincent"]
[Black "Kobo, Ori"]
[WhiteFideId "12940690"]
[BlackFideId "2812320"]
[WhiteElo "2585"]
[BlackElo "2420"]
[Result "1-0"]
[Round "08"]
[TimeControl "180+1"]
[Date "2022.09.13"]
[WhiteClock "0:00:49"]
[BlackClock "0:00:06"]

1. Nf3 {[%clk 0:03:00]}  Nf6 {[%clk 0:02:55]} 2. c4 {[%clk 0:03:01]}  c5 {[%clk 0:02:56]} 3. Nc3 {[%clk 0:03:01]}  d5 {[%clk 0:02:55]} 4. cxd5 {[%clk 0:03:02]}  Nxd5 {[%clk 0:02:56]} 5. e3 {[%clk 0:02:59]}  Nc6 {[%clk 0:02:53]} 6. Bb5 {[%clk 0:02:58]}  e6 {[%clk 0:02:46]} 7. O-O {[%clk 0:02:53]}  Be7 {[%clk 0:02:42]} 8. Ne5 {[%clk 0:02:47]}  Bd7 {[%clk 0:02:24]} 9. Bxc6 {[%clk 0:02:44]}  Bxc6 {[%clk 0:02:19]} 10. Nxc6 {[%clk 0:02:41]}  bxc6 {[%clk 0:02:20]} 11. Qa4 {[%clk 0:02:29]}  Qb6 {[%clk 0:02:11]} 12. Nxd5 {[%clk 0:02:13]}  exd5 {[%clk 0:02:12]} 13. b3 {[%clk 0:02:14]}  Bf6 {[%clk 0:02:04]} 14. Rb1 {[%clk 0:02:12]}  Qb5 {[%clk 0:01:53]} 15. Ba3 {[%clk 0:02:12]}  c4 {[%clk 0:01:45]} 16. Qxb5 {[%clk 0:02:08]}  cxb5 {[%clk 0:01:46]} 17. bxc4 {[%clk 0:02:09]}  bxc4 {[%clk 0:01:45]} 18. Rb7 {[%clk 0:02:09]}  h5 {[%clk 0:01:27]} 19. Rfb1 {[%clk 0:02:04]}  Rh6 {[%clk 0:01:19]} 20. R1b5 {[%clk 0:02:01]}  d4 {[%clk 0:01:07]} 21. exd4 {[%clk 0:01:57]}  Rd8 {[%clk 0:01:05]} 22. Bc5 {[%clk 0:01:46]}  a6 {[%clk 0:00:51]} 23. R5b6 {[%clk 0:01:42]}  Bg5 {[%clk 0:00:39]} 24. f4 {[%clk 0:01:18]}  Bf6 {[%clk 0:00:32]} 25. Kf1 {[%clk 0:01:11]}  a5 {[%clk 0:00:22]} 26. g3 {[%clk 0:01:05]}  Rg6 {[%clk 0:00:13]} 27. Ke2 {[%clk 0:01:02]}  h4 {[%clk 0:00:13]} 28. Kf3 {[%clk 0:01:02]}  hxg3 {[%clk 0:00:13]} 29. hxg3 {[%clk 0:01:02]}  Rh6 {[%clk 0:00:14]} 30. Rb1 {[%clk 0:00:55]}  Bxd4 {[%clk 0:00:06]} 31. Re1+ {[%clk 0:00:46]}  Re6 {[%clk 0:00:05]} 32. Rxe6+ {[%clk 0:00:47]}  fxe6 {[%clk 0:00:05]} 33. Re7+ {[%clk 0:00:47]}  Kf8 {[%clk 0:00:05]} 34. Rd7+ {[%clk 0:00:48]}  Bxc5 {[%clk 0:00:06]} 35. Rxd8+ {[%clk 0:00:49]}  Ke7 {[%clk 0:00:06]} 36. Rc8 {[%clk 0:00:49]} 1-0


[Site "https://www.chess.com"]

[Event "Titled Tuesday Blitz September 13 Late 2022"]
[White "Korchmar, Vasiliy"]
[Black "Sjugirov, Sanan"]
[WhiteFideId "24131750"]
[BlackFideId "4189302"]
[WhiteElo "2370"]
[BlackElo "2609"]
[Result "0-1"]
[Round "08"]
[TimeControl "180+1"]
[Date "2022.09.13"]
[WhiteClock "0:00:01"]
[BlackClock "0:00:57"]

1. e4 {[%clk 0:03:00]}  c6 {[%clk 0:03:00]} 2. d4 {[%clk 0:03:00]}  d5 {[%clk 0:03:01]} 3. e5 {[%clk 0:03:01]}  Bf5 {[%clk 0:03:01]} 4. c4 {[%clk 0:03:01]}  e6 {[%clk 0:03:00]} 5. Nc3 {[%clk 0:03:01]}  Ne7 {[%clk 0:02:55]} 6. a3 {[%clk 0:03:01]}  dxc4 {[%clk 0:02:43]} 7. Bxc4 {[%clk 0:03:02]}  Nd7 {[%clk 0:02:44]} 8. Nge2 {[%clk 0:03:01]}  Nb6 {[%clk 0:02:42]} 9. Ba2 {[%clk 0:03:02]}  Ned5 {[%clk 0:02:38]} 10. O-O {[%clk 0:03:02]}  Be7 {[%clk 0:02:38]} 11. Ng3 {[%clk 0:03:01]}  Bg6 {[%clk 0:02:37]} 12. f4 {[%clk 0:03:01]}  Qd7 {[%clk 0:02:36]} 13. Nce4 {[%clk 0:02:50]}  O-O {[%clk 0:02:34]} 14. Qf3 {[%clk 0:02:42]}  Rad8 {[%clk 0:02:27]} 15. Bd2 {[%clk 0:02:31]}  Nc7 {[%clk 0:02:20]} 16. Be3 {[%clk 0:02:16]}  Nbd5 {[%clk 0:02:20]} 17. Bf2 {[%clk 0:02:02]}  Kh8 {[%clk 0:02:05]} 18. Rad1 {[%clk 0:02:01]}  a5 {[%clk 0:02:03]} 19. Kh1 {[%clk 0:02:00]}  a4 {[%clk 0:02:01]} 20. Bg1 {[%clk 0:02:00]}  Bf5 {[%clk 0:01:52]} 21. Bb1 {[%clk 0:01:44]}  Qc8 {[%clk 0:01:45]} 22. Bc2 {[%clk 0:01:39]}  Nb6 {[%clk 0:01:40]} 23. Bb1 {[%clk 0:01:30]}  Ncd5 {[%clk 0:01:40]} 24. Nxf5 {[%clk 0:01:11]}  exf5 {[%clk 0:01:41]} 25. Nc5 {[%clk 0:01:10]}  Bxc5 {[%clk 0:01:38]} 26. dxc5 {[%clk 0:01:10]}  Na8 {[%clk 0:01:39]} 27. Qh3 {[%clk 0:00:57]}  g6 {[%clk 0:01:38]} 28. e6 {[%clk 0:00:45]}  Qxe6 {[%clk 0:01:37]} 29. Rfe1 {[%clk 0:00:45]}  Qd7 {[%clk 0:01:35]} 30. Bd4+ {[%clk 0:00:38]}  f6 {[%clk 0:01:35]} 31. Bc2 {[%clk 0:00:36]}  Nac7 {[%clk 0:01:35]} 32. Bxa4 {[%clk 0:00:35]}  Ne6 {[%clk 0:01:33]} 33. Be3 {[%clk 0:00:19]}  Rfe8 {[%clk 0:01:29]} 34. Qf3 {[%clk 0:00:17]}  Qe7 {[%clk 0:01:26]} 35. h3 {[%clk 0:00:09]}  Nxc5 {[%clk 0:01:18]} 36. Bf2 {[%clk 0:00:08]}  Ne4 {[%clk 0:01:17]} 37. Bc2 {[%clk 0:00:06]}  b5 {[%clk 0:01:15]} 38. Bd4 {[%clk 0:00:05]}  Kg8 {[%clk 0:01:14]} 39. Bb3 {[%clk 0:00:04]}  Qe6 {[%clk 0:01:13]} 40. Bg1 {[%clk 0:00:04]}  Kg7 {[%clk 0:01:10]} 41. Kh2 {[%clk 0:00:04]}  Rd7 {[%clk 0:01:10]} 42. Rd3 {[%clk 0:00:04]}  Nd2 {[%clk 0:01:00]} 43. Rxd2 {[%clk 0:00:02]}  Qxe1 {[%clk 0:01:00]} 44. Rd1 {[%clk 0:00:02]}  Qe4 {[%clk 0:00:59]} 45. Qg3 {[%clk 0:00:01]}  Ree7 {[%clk 0:00:58]} 46. Bf2 {[%clk 0:00:01]}  Qxf4 {[%clk 0:00:57]} 0-1


[Site "https://www.chess.com"]

[Event "Titled Tuesday Blitz September 13 Late 2022"]
[White "Lin, Dachey"]
[Black "Gheorghiu, Calin"]
[WhiteFideId "2029650"]
[BlackFideId "1200305"]
[WhiteElo "2313"]
[BlackElo "2168"]
[Result "1-0"]
[Round "08"]
[TimeControl "180+1"]
[Date "2022.09.13"]
[WhiteClock "0:01:22"]
[BlackClock "0:00:11"]

1. g4 {[%clk 0:03:00]}  e5 {[%clk 0:02:50]} 2. d4 {[%clk 0:03:00]}  e4 {[%clk 0:02:49]} 3. d5 {[%clk 0:03:00]}  c6 {[%clk 0:02:47]} 4. c4 {[%clk 0:03:00]}  d6 {[%clk 0:02:39]} 5. h3 {[%clk 0:02:58]}  cxd5 {[%clk 0:02:31]} 6. cxd5 {[%clk 0:02:58]}  h5 {[%clk 0:02:31]} 7. Qa4+ {[%clk 0:02:57]}  Nd7 {[%clk 0:02:26]} 8. Qxe4+ {[%clk 0:02:57]}  Ne7 {[%clk 0:02:26]} 9. g5 {[%clk 0:02:51]}  Nc5 {[%clk 0:02:22]} 10. Qf4 {[%clk 0:02:51]}  Nxd5 {[%clk 0:02:18]} 11. Qd4 {[%clk 0:02:49]}  Ne7 {[%clk 0:02:05]} 12. Nc3 {[%clk 0:02:45]}  Nc6 {[%clk 0:01:50]} 13. Qh4 {[%clk 0:02:42]}  Be7 {[%clk 0:01:47]} 14. Bg2 {[%clk 0:02:41]}  Be6 {[%clk 0:01:43]} 15. Nf3 {[%clk 0:02:40]}  Qb6 {[%clk 0:01:20]} 16. O-O {[%clk 0:02:32]}  O-O-O {[%clk 0:01:20]} 17. Be3 {[%clk 0:02:13]}  Qxb2 {[%clk 0:01:10]} 18. Rfc1 {[%clk 0:02:07]}  f6 {[%clk 0:01:04]} 19. Rab1 {[%clk 0:02:04]}  Qa3 {[%clk 0:01:02]} 20. Nb5 {[%clk 0:01:56]}  Qxa2 {[%clk 0:01:00]} 21. Nfd4 {[%clk 0:01:57]}  fxg5 {[%clk 0:00:52]} 22. Bxg5 {[%clk 0:01:57]}  Bxg5 {[%clk 0:00:47]} 23. Qxg5 {[%clk 0:01:58]}  Nxd4 {[%clk 0:00:35]} 24. Nxd4 {[%clk 0:01:59]}  Bc4 {[%clk 0:00:24]} 25. Bxb7+ {[%clk 0:01:21]}  Nxb7 {[%clk 0:00:21]} 26. Qb5 {[%clk 0:01:22]}  Nc5 {[%clk 0:00:11]} 27. Qc6# {[%clk 0:01:22]} 1-0


[Site "https://www.chess.com"]

[Event "Titled Tuesday Blitz September 13 Late 2022"]
[White "Livaic, Leon"]
[Black "Barbosa, Evandro Amorim"]
[WhiteFideId "14531534"]
[BlackFideId "2115824"]
[WhiteElo "2540"]
[BlackElo "2454"]
[Result "1-0"]
[Round "08"]
[TimeControl "180+1"]
[Date "2022.09.13"]
[WhiteClock "0:00:24"]
[BlackClock "0:00:04"]

1. d4 {[%clk 0:03:00]}  Nf6 {[%clk 0:02:59]} 2. c4 {[%clk 0:03:01]}  g6 {[%clk 0:03:00]} 3. Nc3 {[%clk 0:03:01]}  d5 {[%clk 0:03:00]} 4. cxd5 {[%clk 0:03:01]}  Nxd5 {[%clk 0:03:00]} 5. e4 {[%clk 0:03:02]}  Nxc3 {[%clk 0:03:00]} 6. bxc3 {[%clk 0:03:03]}  Bg7 {[%clk 0:03:01]} 7. Bc4 {[%clk 0:03:03]}  c5 {[%clk 0:03:01]} 8. Ne2 {[%clk 0:03:04]}  Nc6 {[%clk 0:03:01]} 9. Be3 {[%clk 0:03:04]}  O-O {[%clk 0:03:01]} 10. h4 {[%clk 0:03:04]}  cxd4 {[%clk 0:02:54]} 11. cxd4 {[%clk 0:03:05]}  Qa5+ {[%clk 0:02:45]} 12. Kf1 {[%clk 0:03:05]}  Rd8 {[%clk 0:02:14]} 13. h5 {[%clk 0:03:04]}  Ne5 {[%clk 0:02:10]} 14. Bb3 {[%clk 0:02:55]}  Ng4 {[%clk 0:01:52]} 15. hxg6 {[%clk 0:02:51]}  hxg6 {[%clk 0:01:52]} 16. Bd2 {[%clk 0:02:34]}  Qa6 {[%clk 0:01:47]} 17. Kg1 {[%clk 0:02:23]}  Be6 {[%clk 0:01:40]} 18. d5 {[%clk 0:01:53]}  Bxa1 {[%clk 0:01:26]} 19. Qxa1 {[%clk 0:01:52]}  f6 {[%clk 0:01:25]} 20. Nf4 {[%clk 0:01:37]}  Bf7 {[%clk 0:01:25]} 21. Qc3 {[%clk 0:01:30]}  Qb6 {[%clk 0:01:16]} 22. Qg3 {[%clk 0:01:29]}  e5 {[%clk 0:00:38]} 23. dxe6 {[%clk 0:01:19]}  Rxd2 {[%clk 0:00:29]} 24. exf7+ {[%clk 0:01:19]}  Kg7 {[%clk 0:00:20]} 25. Qxg4 {[%clk 0:00:23]}  Qxf2+ {[%clk 0:00:19]} 26. Kh2 {[%clk 0:00:23]}  Rh8+ {[%clk 0:00:19]} 27. Nh3 {[%clk 0:00:24]}  Rd3 {[%clk 0:00:06]} 28. f8=Q+ {[%clk 0:00:23]}  Kxf8 {[%clk 0:00:05]} 29. Qc8+ {[%clk 0:00:23]}  Kg7 {[%clk 0:00:06]} 30. Qxh8+ {[%clk 0:00:23]}  Kxh8 {[%clk 0:00:04]} 31. Nxf2 {[%clk 0:00:24]} 1-0


[Site "https://www.chess.com"]

[Event "Titled Tuesday Blitz September 13 Late 2022"]
[White "Makarian, Rudik"]
[Black "Xiong, Jeffery"]
[WhiteFideId "44105681"]
[BlackFideId "2047640"]
[WhiteElo "2410"]
[BlackElo "2714"]
[Result "1/2-1/2"]
[Round "08"]
[TimeControl "180+1"]
[Date "2022.09.13"]
[WhiteClock "0:00:03"]
[BlackClock "0:00:28"]

1. d4 {[%clk 0:03:00]}  d5 {[%clk 0:02:59]} 2. c4 {[%clk 0:03:00]}  e6 {[%clk 0:03:00]} 3. Nf3 {[%clk 0:03:01]}  dxc4 {[%clk 0:02:59]} 4. Nc3 {[%clk 0:02:58]}  a6 {[%clk 0:02:58]} 5. a4 {[%clk 0:02:56]}  Nc6 {[%clk 0:02:58]} 6. g3 {[%clk 0:02:52]}  Nf6 {[%clk 0:02:49]} 7. Bg2 {[%clk 0:02:52]}  Be7 {[%clk 0:02:49]} 8. O-O {[%clk 0:02:53]}  O-O {[%clk 0:02:49]} 9. Bg5 {[%clk 0:02:53]}  Nd5 {[%clk 0:02:47]} 10. h4 {[%clk 0:02:49]}  h6 {[%clk 0:02:43]} 11. Bxe7 {[%clk 0:02:30]}  Qxe7 {[%clk 0:02:44]} 12. e3 {[%clk 0:02:20]}  Bd7 {[%clk 0:02:16]} 13. Nd2 {[%clk 0:02:15]}  Nxc3 {[%clk 0:02:16]} 14. bxc3 {[%clk 0:02:16]}  b5 {[%clk 0:02:17]} 15. Ne4 {[%clk 0:02:14]}  Na5 {[%clk 0:02:04]} 16. axb5 {[%clk 0:01:50]}  axb5 {[%clk 0:02:04]} 17. Nc5 {[%clk 0:01:50]}  Bc6 {[%clk 0:01:57]} 18. Qb1 {[%clk 0:01:32]}  Qd6 {[%clk 0:01:38]} 19. Ne4 {[%clk 0:00:48]}  Bxe4 {[%clk 0:01:33]} 20. Bxe4 {[%clk 0:00:48]}  c6 {[%clk 0:01:34]} 21. Bc2 {[%clk 0:00:41]}  Nb7 {[%clk 0:01:13]} 22. Qb2 {[%clk 0:00:33]}  Qc7 {[%clk 0:01:14]} 23. Be4 {[%clk 0:00:32]}  Nd6 {[%clk 0:01:13]} 24. Bf3 {[%clk 0:00:31]}  Nf5 {[%clk 0:01:03]} 25. e4 {[%clk 0:00:29]}  Ne7 {[%clk 0:01:03]} 26. Qb4 {[%clk 0:00:27]}  e5 {[%clk 0:00:54]} 27. Qc5 {[%clk 0:00:19]}  Rfd8 {[%clk 0:00:53]} 28. dxe5 {[%clk 0:00:13]}  Ng6 {[%clk 0:00:53]} 29. e6 {[%clk 0:00:11]}  fxe6 {[%clk 0:00:54]} 30. Bg4 {[%clk 0:00:10]}  Ne5 {[%clk 0:00:44]} 31. Bxe6+ {[%clk 0:00:10]}  Kh8 {[%clk 0:00:44]} 32. Bf5 {[%clk 0:00:08]}  Nd3 {[%clk 0:00:41]} 33. Qe3 {[%clk 0:00:07]}  Qe5 {[%clk 0:00:41]} 34. Rxa8 {[%clk 0:00:06]}  Rxa8 {[%clk 0:00:41]} 35. Qb6 {[%clk 0:00:07]}  Qxc3 {[%clk 0:00:37]} 36. Qxc6 {[%clk 0:00:07]}  Rb8 {[%clk 0:00:37]} 37. Qg6 {[%clk 0:00:06]}  Kg8 {[%clk 0:00:36]} 38. Qe6+ {[%clk 0:00:06]}  Kh8 {[%clk 0:00:37]} 39. Qg6 {[%clk 0:00:06]}  Kg8 {[%clk 0:00:37]} 40. Qe6+ {[%clk 0:00:03]}  Kh8 {[%clk 0:00:38]} 41. Qd6 {[%clk 0:00:02]}  Qe5 {[%clk 0:00:25]} 42. Qg6 {[%clk 0:00:02]}  Kg8 {[%clk 0:00:26]} 43. Be6+ {[%clk 0:00:02]}  Kh8 {[%clk 0:00:26]} 44. Bf5 {[%clk 0:00:03]}  Kg8 {[%clk 0:00:27]} 45. Be6+ {[%clk 0:00:03]}  Kh8 {[%clk 0:00:28]} 46. Bf5 {[%clk 0:00:03]} 1/2-1/2


[Site "https://www.chess.com"]

[Event "Titled Tuesday Blitz September 13 Late 2022"]
[White "Maltsevskaya, Aleksandra"]
[Black "Goncalves, Davi Sulzbacher"]
[WhiteFideId "24174041"]
[BlackFideId "2154510"]
[WhiteElo "2243"]
[BlackElo "2107"]
[Result "1-0"]
[Round "08"]
[TimeControl "180+1"]
[Date "2022.09.13"]
[WhiteClock "0:01:55"]
[BlackClock "0:00:53"]

1. e4 {[%clk 0:02:57]}  c5 {[%clk 0:02:58]} 2. Nf3 {[%clk 0:02:57]}  Nc6 {[%clk 0:02:59]} 3. d4 {[%clk 0:02:57]}  cxd4 {[%clk 0:03:00]} 4. Nxd4 {[%clk 0:02:58]}  Nf6 {[%clk 0:03:00]} 5. Nc3 {[%clk 0:02:58]}  e5 {[%clk 0:03:00]} 6. Ndb5 {[%clk 0:02:58]}  d6 {[%clk 0:03:01]} 7. Bg5 {[%clk 0:02:58]}  a6 {[%clk 0:03:01]} 8. Na3 {[%clk 0:02:59]}  b5 {[%clk 0:03:02]} 9. Nd5 {[%clk 0:02:59]}  Be7 {[%clk 0:03:03]} 10. Bxf6 {[%clk 0:03:00]}  Bxf6 {[%clk 0:03:03]} 11. c4 {[%clk 0:03:01]}  b4 {[%clk 0:03:03]} 12. Nc2 {[%clk 0:03:01]}  Bg5 {[%clk 0:03:03]} 13. b3 {[%clk 0:03:01]}  a5 {[%clk 0:03:03]} 14. g3 {[%clk 0:03:01]}  O-O {[%clk 0:03:03]} 15. h4 {[%clk 0:03:02]}  Bh6 {[%clk 0:03:02]} 16. Bh3 {[%clk 0:03:03]}  Be6 {[%clk 0:03:02]} 17. Kf1 {[%clk 0:03:03]}  g6 {[%clk 0:02:59]} 18. Kg2 {[%clk 0:03:03]}  f5 {[%clk 0:02:58]} 19. h5 {[%clk 0:03:04]}  Ra7 {[%clk 0:02:49]} 20. hxg6 {[%clk 0:03:04]}  hxg6 {[%clk 0:02:49]} 21. Nce3 {[%clk 0:03:03]}  Bxe3 {[%clk 0:02:46]} 22. Nxe3 {[%clk 0:03:02]}  Nd4 {[%clk 0:02:45]} 23. exf5 {[%clk 0:02:51]}  Qa8+ {[%clk 0:02:36]} 24. f3 {[%clk 0:02:43]}  gxf5 {[%clk 0:02:33]} 25. Nc2 {[%clk 0:02:32]}  Nxc2 {[%clk 0:02:21]} 26. Qxc2 {[%clk 0:02:33]}  Rg7 {[%clk 0:02:03]} 27. Qd2 {[%clk 0:02:28]}  d5 {[%clk 0:02:00]} 28. Qh6 {[%clk 0:02:27]}  Kf7 {[%clk 0:01:43]} 29. cxd5 {[%clk 0:02:09]}  Bxd5 {[%clk 0:01:36]} 30. Qh5+ {[%clk 0:02:08]}  Ke7 {[%clk 0:01:36]} 31. Rac1 {[%clk 0:02:02]}  Rc8 {[%clk 0:01:10]} 32. Qxf5 {[%clk 0:01:56]}  Bxf3+ {[%clk 0:00:51]} 33. Qxf3 {[%clk 0:01:56]}  Rxg3+ {[%clk 0:00:52]} 34. Kxg3 {[%clk 0:01:55]}  Rg8+ {[%clk 0:00:53]} 35. Bg4 {[%clk 0:01:55]} 1-0


[Site "https://www.chess.com"]

[Event "Titled Tuesday Blitz September 13 Late 2022"]
[White "Martinez Ramirez, Lennis"]
[Black "Mikhalsky, Vladimir"]
[WhiteFideId "3509079"]
[BlackFideId "14144352"]
[WhiteElo "2374"]
[BlackElo "2271"]
[Result "1-0"]
[Round "08"]
[TimeControl "180+1"]
[Date "2022.09.13"]
[WhiteClock "0:01:34"]
[BlackClock "0:00:14"]

1. d4 {[%clk 0:03:00]}  Nf6 {[%clk 0:02:59]} 2. c4 {[%clk 0:03:00]}  g6 {[%clk 0:02:58]} 3. Nc3 {[%clk 0:02:59]}  Bg7 {[%clk 0:02:58]} 4. e4 {[%clk 0:02:59]}  O-O {[%clk 0:02:58]} 5. f3 {[%clk 0:02:59]}  d6 {[%clk 0:02:57]} 6. Be3 {[%clk 0:03:00]}  a6 {[%clk 0:02:55]} 7. Qd2 {[%clk 0:03:00]}  Re8 {[%clk 0:02:55]} 8. g4 {[%clk 0:02:58]}  Nc6 {[%clk 0:02:53]} 9. g5 {[%clk 0:02:48]}  Nh5 {[%clk 0:02:52]} 10. Nge2 {[%clk 0:02:49]}  b5 {[%clk 0:02:35]} 11. Ng3 {[%clk 0:02:48]}  e5 {[%clk 0:02:29]} 12. dxe5 {[%clk 0:02:39]}  Nxe5 {[%clk 0:02:25]} 13. Be2 {[%clk 0:02:34]}  Nxc4 {[%clk 0:02:22]} 14. Bxc4 {[%clk 0:02:33]}  bxc4 {[%clk 0:02:21]} 15. Nxh5 {[%clk 0:02:33]}  gxh5 {[%clk 0:02:22]} 16. Rg1 {[%clk 0:02:28]}  Rb8 {[%clk 0:02:18]} 17. O-O-O {[%clk 0:02:23]}  Be6 {[%clk 0:01:57]} 18. Bd4 {[%clk 0:02:06]}  Qc8 {[%clk 0:01:23]} 19. Bf6 {[%clk 0:02:04]}  Qb7 {[%clk 0:01:19]} 20. Rg2 {[%clk 0:02:04]}  Qb6 {[%clk 0:01:12]} 21. Qf4 {[%clk 0:02:02]}  Qc5 {[%clk 0:00:55]} 22. Rdg1 {[%clk 0:01:43]}  h4 {[%clk 0:00:40]} 23. Bxg7 {[%clk 0:01:42]}  Kxg7 {[%clk 0:00:40]} 24. Qf6+ {[%clk 0:01:42]}  Kg8 {[%clk 0:00:40]} 25. g6 {[%clk 0:01:43]}  Qe3+ {[%clk 0:00:15]} 26. Kb1 {[%clk 0:01:35]}  Rxb2+ {[%clk 0:00:14]} 27. Kxb2 {[%clk 0:01:34]}  Rb8+ {[%clk 0:00:14]} 28. Ka1 {[%clk 0:01:34]} 1-0


[Site "https://www.chess.com"]

[Event "Titled Tuesday Blitz September 13 Late 2022"]
[White "Mihajlov, Sebastian"]
[Black "Preotu, Razvan"]
[WhiteFideId "1512110"]
[BlackFideId "2613280"]
[WhiteElo "2464"]
[BlackElo "2407"]
[Result "0-1"]
[Round "08"]
[TimeControl "180+1"]
[Date "2022.09.13"]
[WhiteClock "0:00:12"]
[BlackClock "0:00:58"]

1. e4 {[%clk 0:03:00]}  c5 {[%clk 0:02:58]} 2. Nf3 {[%clk 0:03:01]}  d6 {[%clk 0:02:58]} 3. d4 {[%clk 0:03:01]}  cxd4 {[%clk 0:02:59]} 4. Nxd4 {[%clk 0:03:01]}  Nf6 {[%clk 0:02:59]} 5. Nc3 {[%clk 0:03:01]}  a6 {[%clk 0:03:00]} 6. Bc4 {[%clk 0:03:01]}  e6 {[%clk 0:03:00]} 7. Bb3 {[%clk 0:03:01]}  b5 {[%clk 0:03:00]} 8. Be3 {[%clk 0:02:59]}  Be7 {[%clk 0:02:57]} 9. Qf3 {[%clk 0:02:59]}  Qc7 {[%clk 0:02:51]} 10. g4 {[%clk 0:02:30]}  b4 {[%clk 0:02:49]} 11. Nce2 {[%clk 0:02:30]}  Nbd7 {[%clk 0:01:56]} 12. g5 {[%clk 0:01:39]}  Ne5 {[%clk 0:01:33]} 13. Qg2 {[%clk 0:01:22]}  Nxe4 {[%clk 0:01:20]} 14. Qxe4 {[%clk 0:00:40]}  Bb7 {[%clk 0:01:19]} 15. Qf4 {[%clk 0:00:41]}  Bxh1 {[%clk 0:01:17]} 16. O-O-O {[%clk 0:00:41]}  O-O {[%clk 0:01:16]} 17. Rxh1 {[%clk 0:00:38]}  a5 {[%clk 0:01:12]} 18. Kb1 {[%clk 0:00:21]}  a4 {[%clk 0:01:12]} 19. Bxe6 {[%clk 0:00:20]}  fxe6 {[%clk 0:01:12]} 20. Nxe6 {[%clk 0:00:21]}  Qc6 {[%clk 0:01:09]} 21. Nxf8 {[%clk 0:00:11]}  Qxh1+ {[%clk 0:01:08]} 22. Nc1 {[%clk 0:00:12]}  Rxf8 {[%clk 0:01:08]} 23. Qxb4 {[%clk 0:00:12]}  Qc6 {[%clk 0:00:58]} 0-1


[Site "https://www.chess.com"]